[Event "Chinese League Division-A 2024"]
[Site "Fuling Chongqing"]
[Date "2024.07.01"]
[Round "5.17"]
[White "Dai, Changren"]
[Black "Lu, Shanglei"]
[Result "1/2-1/2"]
[ECO "B45"]
[WhiteElo "2502"]
[BlackElo "2606"]
[Annotator "TA"]
[PlyCount "60"]
[EventDate "2024.06.28"]
[EventType "team-tourn"]
[EventCountry "CHN"]
[SourceTitle "playchess.com"]
[Source "ChessBase"]
[SourceQuality "1"]
[TimeControl "40/5400+30:1800+30"]

{[%evp 17,60,17,19,0,30,29,29,29,27,16,39,44,39,0,0,0,0,0,132,106,98,12,11,10,9,0,0,0,67,0,0,0,0,0,0,0,0,-155,-133,-158,0,0,0,-167,0]} 1. e4 {[%emt 0:00:03]} c5 {[%emt 0:00:02]} 2. Nf3 {[%emt 0:00:06]} e6 {[%emt 0:00:02]} 3. d4 {[%emt 0:00:25]} cxd4 {[%emt 0:00:03]} 4. Nxd4 {[%emt 0:00:04]} Nf6 {[%emt 0:00:05][%cal Bg8f6,Bf6d5,Bd5e3][%mdl 32]} 5. Nc3 {[%emt 0:00:16]} Nc6 {[%emt 0:00:03]} 6. Nxc6 {[%emt 0:00:06]} bxc6 {[%emt 0:00:04]} 7. e5 {[%emt 0:00:05]} Nd5 {[%emt 0:00:07]} 8. Ne4 {[%emt 0:00:42]} Qc7 {[%emt 0:00:02]} 9. f4 {[%emt 0:00:06]} Qb6 {[%emt 0:00:03][%cal Od5f4]} 10. a3 {[%emt 0:00:05]} (10. c4 {keeps more tension.} Bb4+ 11. Ke2 f5 12. exf6 Nxf6 13. Be3) 10... Ne3 {[%emt 0:02:11]} 11. Qd3 {[%emt 0:00:06]} Nxf1 {[%emt 0:00:03]} 12. Rxf1 {[%emt 0:00:06] White has an edge.} Ba6 {[%emt 0:00:02]} 13. c4 {[%emt 0:00:11]} f5 {[%emt 0:00:01]} (13... Qa5+ {simplifies} 14. Ke2 f5 15. Nd6+ Bxd6 16. exd6 Qd8) 14. exf6 {[%emt 0:00:08]} d5 {[%emt 0:00:02]} 15. f7+ {[%emt 0:00:11]} Kxf7 {[%emt 0:00:58]} 16. f5 {[%emt 0:00:06][%cal Bf4f5,Bf5e6][%mdl 32]} h6 {[%emt 0:12:39][%cal Oa6c4] [#] aiming for ...Bxc4!} (16... dxe4 $2 17. Qd7+ Be7 18. fxe6+ Kg8 19. Qxe7 $18) 17. Be3 {[%emt 0:03:22]} Qb7 {[%emt 0:35:33]} (17... Qa5+ $11 18. Qd2 Qxd2+ 19. Nxd2 e5 (19... dxc4 20. Rc1 $15)) 18. fxe6+ {[%emt 0:07:20] Black is weak on the dark squares} Kg8 {[%emt 0:00:12][%cal Oa6c4]} 19. Rf7 {[%emt 0:03:20]} (19. Qc3 $16 Qc8 (19... dxe4 $2 20. Rd1 $18) 20. O-O-O Qxe6 21. Nc5 Bxc5 22. Bxc5) 19... dxe4 $11 {[%emt 0:01:47]} 20. Qxe4 {[%emt 0:59:31]} (20. Qc2 $5 Qb8 $8 21. Qxe4 $11 (21. O-O-O $2 Qe5 $19)) 20... Qb3 {[%emt 0:00:24]} (20... Qxb2 $2 21. Bd4 Qb8 22. Qg6 $18 (22. Qxc6 Qd8 $16)) 21. Rc1 {[%emt 0:01:41] Hoping for Bd4. Really sharp!} Qxb2 {[%emt 0:06:19]} 22. Qxc6 {[%emt 0:06:35]} Qe5 {[%emt 0:13:49]} 23. Kf2 {[%emt 0:02:16] Active counter play!} (23. Qxa8 Qxe3+ 24. Kd1 Qd3+ (24... Qxa3 $2 25. Qd5 $18) 25. Ke1 Qe3+ (25... Qxa3 26. Kd2 $11) 26. Kd1 Qd4+ (26... Qxa3 $2 27. Qd5 $18) 27. Ke1 Qe3+ $11) (23. Rf3 $1 $14 Rb8 (23... Qa5+ $2 24. Kf2 $18) 24. Qxa6) 23... Rb8 {[%emt 0:03:35] And now ...Rb2+ would win.} (23... Qb2+ $2 24. Kf1 Rd8 25. e7 (25. Qxa6 Qxa3 26. Qxa3 Bxa3 $18) 25... Bxe7 26. Rxe7 $18) 24. Qxa6 {[%emt 0:02:46] Re1 is the strong threat.} Rb2+ {[%emt 0:16:03]} 25. Kf3 {[%emt 0:00:00]} Kh7 {[%emt 0:00:54] White must now prevent ...Qh5+.} 26. Qc6 {[%emt 0:04:08]} (26. Rxa7 Qf5+ 27. Bf4 Rb3+ 28. Ke2 Qxf4 29. Qa5 Re3+ (29... Qxc1 30. Qf5+ Kg8 31. Qf7+ Kh7 32. Qf5+ Kg8 33. Qf7+ Kh7 34. Qf5+ $11) 30. Kd1 Qf1+ (30... Bxa3 31. Rxg7+ Kxg7 32. Qa7+ Kg6 33. Qf7+ Qxf7 34. exf7 Rd8+ 35. Kc2 Bxc1 36. Kxc1 Re2 37. h3 Rxg2 38. h4 Kxf7 39. h5 Ra8 40. Kb1 Re8 41. c5 Re1#) 31. Kc2 Qxc4+) 26... Qh5+ {[%emt 0:00:47]} 27. Kg3 $2 {[%emt 0:06:01]} ({White must play} 27. Ke4 $11 Bxa3 28. Rxg7+ (28. Bxa7 $2 {loses.} Qg4+ 29. Ke3 Qg5+ 30. Rf4 Rb3+ 31. Kf2 Qxf4+ $19) (28. Rxa7 $2 {is the wrong capture.} Qg6+ 29. Ke5 Qf6+ 30. Ke4 Rb3 $19) 28... Kxg7 29. Qc7+ (29. Bd4+ $2 Kg6 $19) 29... Kf6 (29... Kg8 30. Qg3+ Kh7 31. Qc7+ Kg8 32. Qg3+ Kh7 33. Qc7+ Kg8 $11) 30. Bd4+ Kxe6 31. Qc6+ (31. Bxh8 Qf5+ 32. Kd4 Qf2+ 33. Kd3 Qe2+ 34. Kd4 Rd2+ 35. Kc3 Qe3#) 31... Bd6 32. Qd5+ (32. Bxh8 $2 Qe2+ 33. Kd4 Rd2+ 34. Kc3 Qe3#) 32... Qxd5+ 33. cxd5+ Kd7 34. Bxb2 (34. Bxh8 Rxg2 35. Ra1 Re2+ 36. Kd3 Rxh2 $14) 34... Re8+ 35. Kd3) 27... Qg6+ $17 {[%emt 0:00:14][%mdl 1024] Black has strong compensation.} 28. Kh3 {[%emt 0:00:12]} Qh5+ {[%emt 0:03:55]} 29. Kg3 {[%emt 0:00:03] Strongly threatening Qe4+.} Qg6+ {[%emt 0:00:14]} 30. Kh3 $1 {[%emt 0:00:04] [#]} Qh5+ $2 {[%emt 0:03:55] Weighted Error Value: White=0.21 (precise) /Black=0.20 (precise) .  Loses game:     	White=1     	---        Missed win:     	---       	Black=1      Mistake:       	White=3     	Black=2      Inaccurate:     	White=1     	Black=1      OK:         	White=6     	Black=7      Best:        	White=3     	Black=6      Strong:       	White=1     	---} (30... h5 $1 $19 {[%csl Gh5][%cal Rg6g4]} 31. Rf4 (31. Rxa7 $2 Qg4#) 31... Bd6) 1/2-1/2

[Event "Chinese League Division-A 2024"]
[Site "Fuling Chongqing"]
[Date "2024.07.01"]
[Round "5.18"]
[White "Xu, Minghui"]
[Black "Wang, Shixu B"]
[Result "1-0"]
[ECO "A21"]
[WhiteElo "2388"]
[BlackElo "2422"]
[Annotator "TA"]
[PlyCount "77"]
[EventDate "2024.06.28"]
[EventType "team-tourn"]
[EventCountry "CHN"]
[SourceTitle "playchess.com"]
[Source "ChessBase"]
[SourceQuality "1"]
[TimeControl "40/5400+30:1800+30"]

{[%evp 9,77,0,8,2,2,-36,-30,-32,-41,-39,-18,-11,0,-31,1,-8,31,30,31,6,25,22,15,-46,-45,-41,-43,-159,-90,-87,87,81,78,93,166,162,180,175,181,181,181,167,286,224,230,222,316,305,735,714,707,570,720,755,700,661,740,706,764,732,736,705,1099,955,951,946,822,743,1541,1085]} 1. c4 {[%emt 0:00:16]} e5 {[%emt 0:02:27]} 2. g3 {[%emt 0:04:01]} d6 {[%emt 0:10:16]} 3. Nc3 {[%emt 0:01:49]} f5 {[%emt 0:00:49]} 4. d4 {[%emt 0:01:42]} Be7 {[%emt 0:00:15]} 5. Nf3 {[%emt 0:04:41]} e4 {[%emt 0:00:25]} 6. Ng1 {[%emt 0:01:02]} c6 {[%emt 0:03:52]} 7. d5 {[%emt 0:07:49]} Nf6 {[%emt 0:07:40]} 8. h4 {[%emt 0:06:15] Black has an edge.} Nbd7 {[%emt 0:01:14]} 9. Nh3 {[%emt 0:16:10]} Ne5 {[%emt 0:14:00]} 10. b3 $1 {[%emt 0:00:08]} Neg4 {[%emt 0:17:10]} 11. f3 {[%emt 0:14:01]} Qa5 {[%emt 0:02:51]} 12. Qd2 {[%emt 0:00:19]} exf3 {[%emt 0:04:05]} (12... e3 $5 13. Qb2 cxd5 $11) 13. exf3 {[%emt 0:00:11]} Ne5 {[%emt 0:00:08]} 14. Be2 {[%emt 0:01:18]} Nh5 {[%emt 0:02:56]} 15. Kf2 {[%emt 0:06:15]} O-O {[%emt 0:01:57]} 16. Nf4 {[%emt 0:14:52]} (16. dxc6 $11 bxc6 17. Kg2) 16... Nxf4 $15 {[%emt 0:01:24]} 17. gxf4 {[%emt 0:00:02]} Ng6 {[%emt 0:04:14]} 18. Kg3 {[%emt 0:00:20]} ({White should play} 18. h5 $15 Nxf4 19. Qxf4 Qxc3 20. Bd2) 18... Bf6 {[%emt 0:05:01]} (18... Re8 $142 $1 {[%cal Og6f4] ...Nxf4! would now be deadly.} 19. b4 Qxb4) 19. Ne4 $17 {[%emt 0:01:48]} Qxd2 $2 {[%emt 0:04:30]} (19... Bxh4+ $1 $17 {stays on course.} 20. Rxh4 Qd8) 20. Nxf6+ $16 {[%emt 0:00:03] Black is now going downhill.} Rxf6 {[%emt 0:01:32]} 21. Bxd2 {[%emt 0:00:01][%cal Bc1d2,Bd2c3,Bc3f6][%mdl 32]} c5 {[%emt 0:00:59]} (21... cxd5 $16 22. Bc3 (22. cxd5 Ne7 $16) 22... Re6) 22. Bc3 {[%emt 0:00:58]} Rf7 {[%emt 0:00:28]} 23. h5 {[%emt 0:00:05][%cal Bh4h5,Bh5h6][%mdl 32]} Nf8 {[%emt 0:00:29]} 24. h6 {[%emt 0:00:22]} g6 {[%emt 0:00:57]} 25. Rae1 {[%emt 0:10:12] Black is weak on the dark squares} Re7 {[%emt 0:05:30]} (25... Nd7 $142 26. Bd3 Nb6) 26. Bf6 $1 $18 {[%emt 0:01:25]} Rf7 {[%emt 0:00:24][%cal Be7f7,Bf7f6,Bf6f8,Bf8a8][%mdl 32]} 27. Bg5 {[%emt 0:00:52]} Nd7 {[%emt 0:00:06]} (27... Rd7 $142 28. Bd3 b6) 28. Bd3 {[%emt 0:00:22]} Nf6 $2 {[%emt 0:00:02] [#]} (28... Kf8 29. Re6 Nb6 30. Rxd6 Bd7) 29. Bxf6 $1 {[%emt 0:00:22] White is clearly winning.} Rxf6 {[%emt 0:00:17]} 30. Re8+ {[%emt 0:00:33]} Rf8 {[%emt 0:00:41]} 31. Rhe1 {[%emt 0:00:15]} Bd7 {[%emt 0:06:16] [#]} 32. Rxa8 $1 {[%emt 0:00:06]} ({Inferior is} 32. R8e7 Rf7 $11) 32... Rxa8 {[%emt 0:00:03][%mdl 4096] Endgame. KRB-KRB} 33. Re7 {[%emt 0:00:06]} Rd8 {[%emt 0:00:01]} 34. Kh4 {[%emt 0:00:06]} Bc8 {[%emt 0:00:30]} 35. Kg5 {[%emt 0:00:37]} a5 {[%emt 0:00:38]} 36. Rg7+ {[%emt 0:00:38]} Kh8 {[%emt 0:00:01]} 37. Kf6 {[%emt 0:00:15]} Re8 {[%emt 0:00:11]} 38. a3 {[%emt 0:01:25]} Rd8 {[%emt 0:03:32]} 39. Rc7 {[%emt 0:00:10] Weighted Error Value: White=0.17 (very precise) /Black=0.32.  Mistake:       	White=2     	Black=6      Inaccurate:     	White=2     	Black=2      OK:         	White=8     	Black=12     Best:        	White=2     	Black=1      Strong:       	White=3     	---} 1-0

[Event "Chinese League Division-A 2024"]
[Site "Fuling Chongqing"]
[Date "2024.07.01"]
[Round "5.19"]
[White "Xiao, Yiyi"]
[Black "Zhu, Jiner"]
[Result "0-1"]
[ECO "A46"]
[WhiteElo "2338"]
[BlackElo "2476"]
[Annotator "RC"]
[PlyCount "180"]
[EventDate "2024.06.28"]
[EventType "team-tourn"]
[EventCountry "CHN"]
[SourceTitle "playchess.com"]
[Source "ChessBase"]
[SourceQuality "1"]
[TimeControl "40/5400+30:1800+30"]

1. Nf3 {[%emt 0:00:30]} Nf6 {[%emt 0:00:09]} 2. g3 {[%emt 0:00:19]} d5 {[%emt 0:01:15]} 3. Bg2 {[%emt 0:03:15]} e6 {[%emt 0:00:16]} 4. d4 {[%emt 0:00:18]} b5 {[%emt 0:02:28]} 5. a4 {[%emt 0:00:32]} b4 {[%emt 0:00:06]} 6. c4 {[%emt 0:01:26]} bxc3 {[%emt 0:00:07]} 7. Nxc3 {[%emt 0:01:20]} Be7 {[%emt 0:00:11]} 8. O-O {[%emt 0:00:31]} O-O {[%emt 0:00:08]} 9. Ne5 {[%emt 0:04:04]} a5 {[%emt 0:02:14]} 10. e4 {[%emt 0:04:50]} c6 {[%emt 0:06:06]} 11. Re1 {[%emt 0:02:30]} Ba6 {[%emt 0:06:15]} 12. Be3 {[%emt 0:16:40]} Nfd7 {[%emt 0:10:17]} 13. Nd3 {[%emt 0:14:55]} Bxd3 {[%emt 0:09:00]} 14. Qxd3 {[%emt 0:00:10]} Na6 {[%emt 0:00:06]} 15. Qe2 {[%emt 0:03:50]} Qb6 {[%emt 0:02:58]} 16. Rac1 {[%emt 0:01:43]} Bb4 {[%emt 0:02:57]} 17. e5 {[%emt 0:06:22]} c5 {[%emt 0:02:47]} 18. Qg4 {[%emt 0:06:04]} Rfd8 {[%emt 0:20:33]} 19. Bh6 {[%emt 0:14:55]} g6 {[%emt 0:00:07]} 20. dxc5 {[%emt 0:07:00]} Bxc5 {[%emt 0:00:23]} 21. Re2 {[%emt 0:00:06]} Qb4 {[%emt 0:07:35]} 22. Bf4 {[%emt 0:02:58]} Nf8 {[%emt 0:04:47]} 23. Qf3 {[%emt 0:01:15]} Rac8 {[%emt 0:01:51]} 24. Rec2 {[%emt 0:00:58]} Qb8 {[%emt 0:04:26]} 25. Nb5 {[%emt 0:00:56]} Be7 {[%emt 0:00:49]} 26. Bf1 {[%emt 0:01:55]} Rxc2 {[%emt 0:02:08]} 27. Rxc2 {[%emt 0:00:01]} Nb4 {[%emt 0:00:25]} 28. Rc7 {[%emt 0:00:18]} Rd7 {[%emt 0:00:05]} 29. Rc1 {[%emt 0:00:30]} g5 {[%emt 0:04:02]} 30. Be3 {[%emt 0:01:24]} Qxe5 {[%emt 0:00:07]} 31. Bd4 {[%emt 0:01:42]} Qe4 {[%emt 0:00:13]} 32. Qh5 {[%emt 0:02:05]} Qg6 {[%emt 0:05:09]} 33. Qf3 {[%emt 0:00:20]} g4 {[%emt 0:00:59]} 34. Qd1 {[%emt 0:00:34]} f6 {[%emt 0:00:26]} 35. Rc8 {[%emt 0:00:20]} Rd8 {[%emt 0:01:24]} 36. Rc7 {[%emt 0:00:22]} Rd7 {[%emt 0:01:40]} 37. Qc1 {[%emt 0:00:57]} Qe8 {[%emt 0:02:59]} 38. Rc8 {[%emt 0:00:24]} Rd8 {[%emt 0:00:10]} 39. Rc7 {[%emt 0:00:12]} Rd7 {[%emt 0:00:22]} 40. Qf4 {[%emt 0:00:00]} Rxc7 {[%emt 0:00:00]} 41. Qxg4+ {[%emt 0:05:02]} Kh8 {[%emt 0:02:16]} 42. Nxc7 {[%emt 0:00:07]} Qd7 {[%emt 0:02:32]} 43. Na6 {[%emt 0:11:59]} Nc6 {[%emt 0:07:55]} 44. Bb5 {[%emt 0:02:05]} Qb7 {[%emt 0:00:20]} 45. Bc5 {[%emt 0:02:25]} Ne5 {[%emt 0:02:15]} 46. Qe2 {[%emt 0:03:18]} Bxc5 {[%emt 0:05:47]} 47. Nxc5 {[%emt 0:00:05]} Qe7 {[%emt 0:00:23]} 48. Nd3 {[%emt 0:00:36]} Nfg6 {[%emt 0:00:50]} 49. f4 {[%emt 0:04:10]} Nxd3 {[%emt 0:00:41]} 50. Bxd3 {[%emt 0:00:07]} Nf8 {[%emt 0:00:31]} 51. Kg2 {[%emt 0:01:52]} e5 {[%emt 0:02:04]} 52. fxe5 {[%emt 0:01:29]} fxe5 {[%emt 0:00:04]} 53. Bf5 {[%emt 0:00:18]} e4 {[%emt 0:01:26]} 54. b3 {[%emt 0:01:50]} Qe5 {[%emt 0:00:32]} 55. g4 {[%emt 0:02:36]} Ng6 {[%emt 0:04:30]} 56. Bxg6 {[%emt 0:00:06]} hxg6 {[%emt 0:00:03]} 57. Qe3 {[%emt 0:00:53]} Kg7 {[%emt 0:02:44]} 58. Qa7+ {[%emt 0:01:02]} Kh6 {[%emt 0:01:18]} 59. Qe3+ {[%emt 0:00:14]} Qg5 {[%emt 0:01:27]} 60. Qh3+ {[%emt 0:00:10]} Kg7 {[%emt 0:00:11]} 61. Qc3+ {[%emt 0:00:04]} Qf6 {[%emt 0:00:34]} 62. Qc7+ {[%emt 0:01:38]} Kh6 {[%emt 0:00:11]} 63. Qc1+ {[%emt 0:00:35]} Qg5 {[%emt 0:00:24]} 64. Qd1 {[%emt 0:00:04]} Kh7 {[%emt 0:00:39]} 65. h3 {[%emt 0:00:11]} Qe5 {[%emt 0:00:13]} 66. Qe1 {[%emt 0:01:31]} d4 {[%emt 0:00:50]} 67. Qh4+ {[%emt 0:00:18]} Kg7 {[%emt 0:00:05]} 68. Qd8 {[%emt 0:00:07]} Qf6 {[%emt 0:01:46]} 69. Qxa5 {[%emt 0:00:40]} e3 {[%emt 0:01:17]} 70. Qc7+ {[%emt 0:00:34]} Kh6 {[%emt 0:00:03]} 71. Qg3 {[%emt 0:00:16]} Qe7 {[%emt 0:01:14]} 72. g5+ {[%emt 0:00:42]} Kg7 {[%emt 0:00:05]} 73. Qf4 {[%emt 0:00:19]} d3 {[%emt 0:00:35]} 74. Kf3 {[%emt 0:00:59]} e2 {[%emt 0:00:30]} 75. Qf6+ {[%emt 0:00:05]} Qxf6+ {[%emt 0:00:03]} 76. gxf6+ {[%emt 0:00:03]} Kxf6 {[%emt 0:00:05]} 77. Kf2 {[%emt 0:00:03]} Ke5 {[%emt 0:00:42]} 78. a5 {[%emt 0:00:01]} Kd4 {[%emt 0:00:47]} 79. a6 {[%emt 0:00:13]} Kc3 {[%emt 0:00:04]} 80. a7 {[%emt 0:00:05]} Kd2 {[%emt 0:00:05]} 81. a8=Q {[%emt 0:00:13]} e1=Q+ {[%emt 0:00:09]} 82. Kg2 {[%emt 0:00:05]} Qe2+ {[%emt 0:00:20]} 83. Kg3 {[%emt 0:00:09]} Qe3+ {[%emt 0:00:06]} 84. Kg4 {[%emt 0:00:55]} Qe6+ {[%emt 0:01:02]} 85. Kg5 {[%emt 0:00:32]} Ke3 {[%emt 0:01:09]} 86. Qg2 {[%emt 0:02:40]} d2 {[%emt 0:00:46]} 87. Qg1+ {[%emt 0:00:22]} Ke2 {[%emt 0:00:25]} 88. Qg2+ {[%emt 0:01:07]} Kd3 {[%emt 0:00:06]} 89. Qf1+ {[%emt 0:00:16]} Kc2 {[%emt 0:00:08]} 90. Qg2 {[%emt 0:00:12]} Kc1 {[%emt 0:00:11]} 0-1

[Event "Chinese League Division-A 2024"]
[Site "Fuling Chongqing"]
[Date "2024.07.01"]
[Round "5.20"]
[White "Bai, Xue"]
[Black "Jiang, Tianyu"]
[Result "1-0"]
[ECO "B85"]
[WhiteElo "2114"]
[BlackElo "1995"]
[Annotator "TA"]
[PlyCount "122"]
[EventDate "2024.06.28"]
[EventType "team-tourn"]
[EventCountry "CHN"]
[SourceTitle "playchess.com"]
[Source "ChessBase"]
[SourceQuality "1"]
[TimeControl "40/5400+30:1800+30"]

{[%evp 25,122,13,20,10,28,10,10,11,15,10,27,23,27,1,8,1,0,-10,0,0,0,0,20,-15,-14,-13,-22,-20,0,-38,-22,-21,0,-47,45,43,39,41,48,49,47,39,116,115,351,202,182,204,176,156,245,277,317,229,258,266,339,343,456,239,234,251,251,250,495,483,486,455,574,560,522,412,535,522,712,606,631,628,579,557,4718,4798,1208,4794,4845,4790,2024,1994,1969,1907,6608,6570,6070,5762,5173,5173,4731,4627,682]} 1. e4 {[%emt 0:00:03]} c5 {[%emt 0:00:29]} 2. Nf3 {[%emt 0:00:08]} e6 {[%emt 0:01:10]} 3. d4 {[%emt 0:00:07]} cxd4 {[%emt 0:00:04]} 4. Nxd4 {[%emt 0:00:04]} Nc6 {[%emt 0:00:19]} 5. Nc3 {[%emt 0:00:07]} Qc7 {[%emt 0:00:06]} 6. Be2 {[%emt 0:00:15]} a6 {[%emt 0:03:16]} 7. O-O {[%emt 0:00:15]} Nf6 {[%emt 0:00:10]} 8. Be3 {[%emt 0:00:09]} Be7 {[%emt 0:00:42]} 9. f4 {[%emt 0:00:19]} d6 {[%emt 0:00:07]} 10. Qe1 {[%emt 0:00:27]} O-O {[%emt 0:01:30]} 11. Qg3 {[%emt 0:00:17]} Nxd4 {[%emt 0:01:57]} 12. Bxd4 {[%emt 0:00:07]} b5 {[%emt 0:00:04]} 13. a3 {[%emt 0:00:08]} Bb7 {[%emt 0:00:14]} 14. Rad1 {[%emt 0:02:03]} Rae8 {[%emt 0:09:04]} 15. Kh1 {[%emt 0:03:22]} Bc6 {[%emt 0:01:57]} 16. Bf3 {[%emt 0:03:06] The position is equal.} Rd8 {[%emt 0:05:00]} 17. Rfe1 {[%emt 0:09:26]} Ne8 {[%emt 0:24:42]} 18. Qf2 {[%emt 0:12:28]} (18. f5 {is interesting.} Qb7 19. Kg1 Nf6 20. Re2) 18... Rb8 {[%emt 0:07:13] Against Bb6} 19. Qd2 {[%emt 0:15:43]} e5 {[%emt 0:15:45]} 20. Be3 {[%emt 0:00:40]} Nf6 {[%emt 0:02:02]} 21. f5 {[%emt 0:04:34]} h6 {[%emt 0:08:11]} 22. g4 $1 {[%emt 0:01:26]} Nh7 {[%emt 0:02:07]} 23. Re2 {[%emt 0:03:03]} Rfd8 {[%emt 0:04:44]} 24. Kg2 {[%emt 0:03:14]} a5 {[%emt 0:03:56]} 25. Nd5 {[%emt 0:01:50]} Bxd5 {[%emt 0:00:41]} 26. Qxd5 {[%emt 0:00:16]} Bh4 {[%emt 0:03:33]} (26... Nf6 $5 27. Qd3 $8 b4 $11) 27. Red2 {[%emt 0:06:15]} Nf6 {[%emt 0:03:51]} 28. Qd3 {[%emt 0:01:02]} Qe7 {[%emt 0:00:33][%cal Od6d5]} 29. Qc3 {[%emt 0:03:33] [#]} (29. Kh3 $11 {might be stronger.} Nh7 30. Re2) 29... d5 {[%emt 0:01:00]} 30. exd5 $14 {[%emt 0:00:56][%cal Od5d6] d6! is the strong threat.} (30. Qxa5 d4 $11) 30... e4 {[%emt 0:00:09]} 31. Be2 {[%emt 0:00:06][%cal Od5d6] Strongly threatening d6!} b4 {[%emt 0:00:50]} 32. axb4 {[%emt 0:01:20]} axb4 {[%emt 0:00:27]} 33. Qc4 {[%emt 0:01:24]} Qe5 {[%emt 0:00:35] [#]} (33... Qd6 $1 $14) 34. d6 $1 $36 {[%emt 0:02:16][%mdl 2048] Black is under strong pressure.} h5 $2 {[%emt 0:00:30] This costs Black the game.} (34... Bg5 $16 35. Bxg5 hxg5) 35. Qd4 {[%emt 0:04:32] Active counter play!} (35. gxh5 Qxf5 36. Rf1 Ng4 $16) (35. g5 $142) 35... Qxd4 $18 {[%emt 0:00:30]} 36. Rxd4 {[%emt 0:00:11]} hxg4 {[%emt 0:00:30]} 37. b3 {[%emt 0:03:32]} Kf8 {[%emt 0:00:31]} (37... Rb6 $16 {was called for.} 38. R4d2 Rc6) 38. h3 {[%emt 0:00:21]} Rbc8 {[%emt 0:00:28]} 39. Bc4 {[%emt 0:00:57]} ({And not} 39. Bxg4 Rxc2+ 40. R1d2 Rc3 $11) 39... g3 {[%emt 0:00:26]} 40. Bf4 {[%emt 0:00:00] A strong pair of Bishops.} Rc5 {[%emt 0:00:00]} 41. d7 {[%emt 0:25:02] Threatens to win with Bd6+.} (41. Bxg3 Bxg3 42. Kxg3 Rxf5 $11) 41... Rc6 {[%emt 0:31:02]} 42. Bd6+ {[%emt 0:01:19]} (42. Bxg3 Bxg3 43. Kxg3 Ke7 $18) (42. Bb5 $142 Rxc2+ 43. R1d2) 42... Rxd6 {[%emt 0:00:30]} 43. Rxd6 {[%emt 0:00:02] Black must now prevent Bb5.} Nh5 {[%emt 0:00:33]} 44. Rf1 {[%emt 0:01:05] Against Nf4+} Ke7 $2 {[%emt 0:00:28]} (44... Be7 45. Rdd1 Bc5) 45. Rd4 {[%emt 0:00:08]} Nf6 {[%emt 0:00:12]} 46. Bb5 {[%emt 0:00:33]} g6 {[%emt 0:00:49]} 47. fxg6 {[%emt 0:01:19]} fxg6 {[%emt 0:00:12]} 48. Bc6 {[%emt 0:00:46]} Ke6 {[%emt 0:00:48]} 49. Rxb4 {[%emt 0:01:18] White is clearly winning.} Ke5 {[%emt 0:00:32]} 50. c3 {[%emt 0:01:14]} g5 {[%emt 0:00:28]} 51. Rb5+ {[%emt 0:00:53]} Ke6 {[%emt 0:00:06]} 52. Re1 {[%emt 0:02:26]} Nh5 {[%emt 0:00:52]} 53. Rxe4+ {[%emt 0:00:37]} Kd6 {[%emt 0:00:09]} 54. Rxh4 {[%emt 0:01:05]} gxh4 {[%emt 0:00:54]} 55. Rxh5 {[%emt 0:00:06]} Kxc6 {[%emt 0:00:04]} 56. Rxh4 {[%emt 0:00:06]} Rxd7 {[%emt 0:00:12] KR-KR} 57. Rc4+ {[%emt 0:00:04]} Kb5 {[%emt 0:01:01]} 58. Kxg3 {[%emt 0:00:09]} Rg7+ {[%emt 0:00:23]} 59. Kf4 {[%emt 0:00:19]} Rh7 {[%emt 0:00:10]} 60. Kg4 {[%emt 0:00:06]} Rg7+ {[%emt 0:00:06]} 61. Kf5 {[%emt 0:00:05]} Rf7+ {[%emt 0:01:13] Weighted Error Value: White=0.25 (precise) /Black=0.51.  Loses game:     	---       	Black=1      Mistake:       	White=3     	Black=4      Inaccurate:     	White=3     	Black=2      OK:         	White=15    	Black=9      Best:        	White=2     	Black=4      Strong:       	White=2     	---} 1-0